[Event "16th Serbian-ch Women 2022"]
[Site "Bajina Basta"]
[Date "2022.12.06"]
[Round "1.4"]
[White "Bojicic, Andjela"]
[Black "Gajcin, Marina"]
[Result "0-1"]
[ECO "D94"]
[WhiteElo "2117"]
[BlackElo "2219"]
[Annotator "TA"]
[PlyCount "100"]
[EventDate "2022.12.06"]
[EventType "tourn"]
[EventCountry "SRB"]
[SourceTitle "playchess.com"]
[Source "ChessBase"]
[SourceQuality "1"]
[TimeControl "40/5400+30:1800+30"]

{[%evp 18,100,-22,-22,-4,0,-5,-2,0,-13,17,0,13,0,1,5,0,-28,-35,-19,-16,-26,-35,-49,-57,-50,-49,-112,-99,-109,-101,-106,-95,-97,-103,-97,-63,-91,-86,-98,-97,-85,-82,-181,-124,-186,-97,-197,-191,-1207,-1073,-29986,-29980,-29980,-29981,-29981,-29982,-29978,-433,-411,-381,-254,-247,-791,-795,-780,-697,-1875,-1632,-29970,-29971,-29971,-29972,-29974,-29975,-29972,-29974,-29974,-29975,-29975,-29976,-29976,-29974,-5373,-3141]} 1. d4 {[%emt 0:00:04]} Nf6 {[%emt 0:00:06]} 2. c4 {[%emt 0:00:05]} g6 {[%emt 0:00:04]} 3. Nf3 {[%emt 0:00:52]} Bg7 {[%emt 0:01:12]} 4. e3 {[%emt 0:00:19]} O-O {[%emt 0:01:41]} 5. Be2 {[%emt 0:01:10]} c5 {[%emt 0:09:53]} 6. O-O {[%emt 0:14:55]} cxd4 {[%emt 0:06:25]} 7. exd4 {[%emt 0:05:11]} d5 {[%emt 0:01:42]} 8. c5 {[%emt 0:07:37]} Nc6 {[%emt 0:06:42]} 9. Nc3 {[%emt 0:05:33]} Ne4 {[%emt 0:02:40]} 10. Be3 {[%emt 0:08:02]} Nxc5 {[%emt 0:12:15] D94: Grünfeld: 4 Nf3 Bg7 5 e3.} 11. dxc5 {[%emt 0:09:41]} d4 {[%emt 0:00:12]} 12. Nxd4 {[%emt 0:07:55]} Nxd4 {[%emt 0:03:13] The position is equal.} 13. Rc1 {[%emt 0:05:19]} Bf5 {[%emt 0:12:51]} 14. Bf3 {[%emt 0:11:37]} Rb8 {[%emt 0:09:55] [#]} 15. Bxd4 $146 {[%emt 0:04:14]} ({Predecessor:} 15. Re1 e5 16. Be4 Qa5 17. Bxf5 Nxf5 18. Qe2 Rbc8 19. Qb5 Qxb5 20. Nxb5 Nxe3 21. fxe3 {0-1 (42) Milans,C (1921)-Lopez Falcon,J (2173) Montevideo 2008}) 15... Bxd4 {[%emt 0:07:09]} 16. b4 {[%emt 0:02:29]} e5 {[%emt 0:03:23]} 17. Ne4 {[%emt 0:08:08]} Bxe4 {[%emt 0:04:20]} 18. Bxe4 {[%emt 0:00:06]} Qe7 {[%emt 0:02:59]} 19. Qb3 {[%emt 0:01:02]} Kg7 {[%emt 0:02:14]} 20. Qc4 {[%emt 0:03:43]} Rfc8 {[%emt 0:03:54]} 21. g3 {[%emt 0:01:03]} a5 {[%emt 0:00:56]} 22. bxa5 {[%emt 0:01:15]} (22. a3 $15) 22... Rxc5 $17 {[%emt 0:00:22]} 23. Qb3 {[%emt 0:01:03]} Rxa5 {[%emt 0:00:42]} 24. Kg2 {[%emt 0:00:31]} Ra3 {[%emt 0:02:54]} 25. Rc7 {[%emt 0:00:29][%mdl 64]} Qxc7 {[%emt 0:00:45]} 26. Qxa3 {[%emt 0:00:04]} b5 {[%emt 0:02:16]} (26... Rc8 {seems wilder.} 27. Rd1 Qd7 28. Rd2 b6) 27. Qb3 {[%emt 0:01:00]} b4 {[%emt 0:01:00]} 28. h4 {[%emt 0:00:29]} h5 {[%emt 0:01:01]} 29. Bd5 {[%emt 0:00:08]} Rd8 {[%emt 0:00:38]} 30. Bc4 {[%emt 0:00:53]} (30. Qc4 $17 Qe7 31. Be4) 30... Qb7+ {[%emt 0:00:43]} (30... Qc6+ $19 31. Kh2 Rd7) 31. Kh2 {[%emt 0:00:19] [#]} (31. f3 $17 {keeps fighting.}) 31... Bc5 {[%emt 0:00:53]} (31... Rd7 $1 $19 32. Qc2 Qf3) 32. Qb2 {[%emt 0:00:40]} (32. Qc2 $17) 32... Qe4 $19 {[%emt 0:00:36]} 33. Qb3 {[%emt 0:00:17]} (33. Qc1) 33... Rd2 {[%emt 0:00:24]} 34. Kg1 {[%emt 0:00:45] [#]} Rxf2 $1 {[%emt 0:00:29][%mdl 512]} 35. Rxf2 {[%emt 0:00:18]} Qe1+ {[%emt 0:00:06][%mdl 64] Pin, Double Attack} ({Weaker is} 35... Bxf2+ 36. Kxf2 Qd4+ 37. Kf1 $16) 36. Kg2 {[%emt 0:00:29]} Qxf2+ {[%emt 0:00:13] KQB-KQB} 37. Kh3 {[%emt 0:00:06]} e4 {[%emt 0:01:10]} (37... f5 $142 38. a3 f4 39. gxf4 Qxf4 40. Qg3 Qxc4 41. axb4 Bd6 42. Kg2 Qxb4 43. Kf1 Qc4+ 44. Kg2 Qd4 45. Qg5 e4 46. Qb5 Bc5 47. Qf1 e3 48. Qf3 Qg4+ 49. Qxg4 hxg4 50. Kf1 g3 51. Ke2 g2 52. Kd3 g1=Q 53. Kc4 e2 54. Kd5 e1=Q 55. h5 gxh5 56. Kc4 Qd4+ 57. Kb5 Qeb4+ 58. Kc6 Qd6#) 38. Qd1 {[%emt 0:00:28]} Qf5+ {[%emt 0:00:48]} 39. Kg2 {[%emt 0:00:25]} e3 {[%emt 0:00:24]} 40. Qf3 {[%emt 0:00:38] Against Qe4} (40. Qf1) 40... Qc2+ {[%emt 0:00:19]} 41. Qe2 {[%emt 0:30:18]} Qe4+ {[%emt 0:30:43]} 42. Kh3 {[%emt 0:00:00]} Bd6 {[%emt 0:00:00] ( -> ...Qh1+)} 43. Bd3 {[%emt 0:00:00]} Qh1+ {[%emt 0:00:00]} 44. Qh2 {[%emt 0:00:00]} Qf3 {[%emt 0:00:00]} 45. Be2 {[%emt 0:00:00]} Qf5+ {[%emt 0:00:00]} 46. Kg2 {[%emt 0:00:00]} Qf2+ {[%emt 0:00:00]} 47. Kh3 {[%emt 0:00:00] [#]} Bxg3 $1 {[%emt 0:00:00][%csl Gg3][%cal Rf2h2][%mdl 512]} 48. Qxf2 {[%emt 0:00:00]} (48. Qg2 Qxg2+) 48... Bxf2 {[%emt 0:00:00]} 49. Bd3 {[%emt 0:00:00]} f6 {[%emt 0:00:00]} 50. Be2 {[%emt 0:00:00]} Kh6 {[%emt 0:00:00] Weighted Error Value: White=0.95/Black=0.20 (precise)} 0-1

[Event "16th Serbian-ch Women 2022"]
[Site "Bajina Basta"]
[Date "2022.12.06"]
[Round "1.5"]
[White "Vujcic, Milena"]
[Black "Chelushkina, Irina"]
[Result "1-0"]
[ECO "B33"]
[WhiteElo "2029"]
[BlackElo "2173"]
[Annotator "TA"]
[PlyCount "89"]
[EventDate "2022.12.06"]
[EventType "tourn"]
[EventCountry "SRB"]
[SourceTitle "playchess.com"]
[Source "ChessBase"]
[SourceQuality "1"]
[TimeControl "40/5400+30:1800+30"]

{[%evp 31,89,20,51,10,15,6,68,72,66,67,113,137,84,65,107,102,106,106,145,137,183,202,174,61,179,184,183,173,175,179,270,208,266,245,269,269,29992,353,344,343,358,285,272,233,421,426,611,581,556,365,681,673,1652,1487,918,804,748,691,29985,29986]} 1. e4 {[%emt 0:00:04]} c5 {[%emt 0:00:21]} 2. Nf3 {[%emt 0:00:06][%cal Bg1f3,Bf3d4,Bd4b5,Bb5a3,Ba3c2][%mdl 32]} Nc6 {[%emt 0:00:10]} 3. d4 {[%emt 0:00:06]} cxd4 {[%emt 0:00:02]} 4. Nxd4 {[%emt 0:00:06]} Nf6 {[%emt 0:00:03]} 5. Nc3 {[%emt 0:00:08]} e5 {[%emt 0:00:04]} 6. Ndb5 {[%emt 0:00:05]} d6 {[%emt 0:00:02]} 7. Bg5 {[%emt 0:00:08]} a6 {[%emt 0:00:03]} 8. Na3 {[%emt 0:00:05]} b5 {[%emt 0:00:02]} 9. Nd5 {[%emt 0:00:13]} Be7 {[%emt 0:00:04]} 10. Bxf6 {[%emt 0:00:12]} Bxf6 {[%emt 0:00:04]} 11. c3 {[%emt 0:00:12]} Bg5 {[%emt 0:01:10]} 12. Nc2 {[%emt 0:00:07]} O-O {[%emt 0:02:26]} 13. a4 {[%emt 0:00:07]} bxa4 {[%emt 0:00:35]} 14. Rxa4 {[%emt 0:00:06]} a5 {[%emt 0:00:33]} 15. Bc4 {[%emt 0:04:02]} Rb8 {[%emt 0:00:24]} 16. b3 {[%emt 0:00:11]} Kh8 {[%emt 0:07:27]} 17. h4 {[%emt 0:04:42] B33: Sicilian: Pelikan and Sveshnikov Variations.} Bh6 {[%emt 0:00:05]} 18. Nce3 {[%emt 0:01:11] 18.Nce3 is better than 18.g4.} Bd7 {[%emt 0:06:10]} ({Better is} 18... Bxe3 $11 19. Nxe3 Ne7) 19. Nf5 $14 {[%emt 0:04:03] White is slightly better.} Bxf5 {[%emt 0:05:15]} 20. exf5 {[%emt 0:00:06]} e4 {[%emt 0:00:01]} (20... Ne7 $14) 21. g4 {[%emt 0:15:39] Black must now prevent g5.} f6 {[%emt 0:06:17] [#] Against g5} 22. Bf1 $146 {[%emt 0:24:15]} ({Predecessor:} 22. Rh3 Re8 23. Kf1 Ne5 24. Be2 Nd7 25. Rd4 Nb6 26. Ne3 Qc7 27. Bb5 Re5 28. c4 {1-0 (39) Gameel,M (2204)-Sabar,E (1995) Marrakesh 2014}) 22... Ne7 {[%emt 0:40:59]} 23. Rxe4 {[%emt 0:09:58]} Nxd5 {[%emt 0:00:55]} 24. Qxd5 {[%emt 0:00:05]} Qc7 {[%emt 0:00:05]} 25. Rh3 {[%emt 0:07:09] White is more active.} a4 {[%emt 0:04:23]} (25... Qd7 $16 26. Be2 (26. Qxa5 Rbe8 $11) 26... Rfe8) 26. Rxa4 $18 {[%emt 0:11:53]} Rfe8+ {[%emt 0:00:19] [#]} 27. Re4 {[%emt 0:00:05]} (27. Be2 $1 $18) 27... Qa7 {[%emt 0:07:45]} (27... Qc5 $1 $14 28. Qd3 Qc6) 28. Be2 {[%emt 0:02:26]} Qa2 {[%emt 0:04:43] Strongly threatening ...Qb1+.} 29. Re6 {[%emt 0:04:03]} Bf4 {[%emt 0:00:35]} (29... Rxe6 $2 30. fxe6 Qa1+ 31. Qd1 Qxd1+ 32. Kxd1 $18) 30. Kf1 {[%emt 0:02:03][%cal Be1f1,Bf1g2,Bg2h3,Bh3g4,Bg4g3][%mdl 32]} Be5 {[%emt 0:00:09]} (30... Rf8 $142 31. Bb5 Be5) 31. Rxe8+ {[%emt 0:06:36]} Rxe8 {[%emt 0:00:02]} 32. Re3 {[%emt 0:00:10]} Rb8 {[%emt 0:03:27] Against f4} 33. Bc4 {[%emt 0:00:22]} h5 $2 {[%emt 0:00:26]} (33... Rf8 $18 34. b4 Qa8) 34. Qe4 $2 {[%emt 0:00:48]} (34. gxh5 Qb1+ 35. Kg2 Qxf5 $18) (34. Qf7 {mates} Qa1+ 35. Re1 Qc1 36. Rxc1 Bf4 {[#]} 37. g5 $1 Bxg5 38. hxg5 d5 39. Qxh5+ Kg8 40. Bxd5+ Kf8 41. Qf7#) 34... Qa1+ {[%emt 0:02:58]} 35. Kg2 {[%emt 0:00:04]} Qd1 {[%emt 0:00:12]} 36. gxh5 {[%emt 0:02:08]} Qxh5 {[%emt 0:00:18]} 37. Kh3 {[%emt 0:01:46] Against g6} Qh6 $2 {[%emt 0:03:50]} (37... g5 38. Qg4 (38. fxg6 f5 $18) 38... Qxh4+ 39. Qxh4+ gxh4) 38. Kg4 {[%emt 0:01:20] Hoping for f4.} Rf8 {[%emt 0:03:39]} (38... d5 $142 39. Bxd5 Rf8) 39. f4 {[%emt 0:00:43]} g6 {[%emt 0:01:40]} 40. Kg3 {[%emt 0:00:35]} ({Less strong is} 40. fxe5 gxf5+ 41. Qxf5 (41. Kxf5 $2 fxe5+ 42. Kg4 Rf4+ $19) 41... Qxe3 $16) 40... Qg7 $2 {[%emt 0:02:00]} (40... d5 41. Bxd5 Bd6 42. fxg6 Kg7) 41. Kh3 {[%emt 0:02:29]} (41. fxe5 $2 {perishes.} gxf5+ 42. Kh3 fxe4 $19) 41... Qh6 {[%emt 0:05:58]} 42. fxe5 {[%emt 0:07:58]} gxf5 {[%emt 0:00:01]} 43. Qf3 {[%emt 0:02:29]} fxe5 {[%emt 0:00:02]} 44. Re1 {[%emt 0:00:57] Rg1 is the strong threat.} f4 {[%emt 0:03:00]} 45. Rg1 {[%emt 0:00:24] Weighted Error Value: White=0.43/Black=0.76} 1-0

[Event "16th Serbian-ch Women 2022"]
[Site "Bajina Basta"]
[Date "2022.12.07"]
[Round "2.1"]
[White "Eric, Jovana"]
[Black "Chelushkina, Irina"]
[Result "0-1"]
[ECO "B31"]
[WhiteElo "2245"]
[BlackElo "2173"]
[Annotator "TA"]
[PlyCount "104"]
[EventDate "2022.12.06"]
[EventType "tourn"]
[EventCountry "SRB"]
[SourceTitle "playchess.com"]
[Source "ChessBase"]
[SourceQuality "1"]
[TimeControl "40/5400+30:1800+30"]

{[%evp 18,104,0,-34,37,21,29,37,28,9,14,24,17,16,35,23,35,14,33,26,75,75,70,29,32,43,32,31,51,44,60,48,72,14,9,-22,9,-72,-45,-50,-56,-52,-37,-54,-51,-44,-37,-113,-114,-115,-116,-151,0,0,0,0,0,0,0,-432,-399,-896,-905,-856,-814,-708,-704,-1012,-649,-12841,-1393,-1397,-1379,-1201,-1142,-1006,-903,-903,-895,-833,-798,-820,-817,-792,-780,-4821,-1811,-1468,-970]} 1. e4 {[%emt 0:00:04]} c5 {[%emt 0:00:25]} 2. Nf3 {[%emt 0:00:11]} Nc6 {[%emt 0:00:09]} 3. Bb5 {[%emt 0:00:16]} g6 {[%emt 0:01:25]} 4. O-O {[%emt 0:00:28]} Bg7 {[%emt 0:00:03]} 5. c3 {[%emt 0:00:33]} Nf6 {[%emt 0:02:01][%cal Bg8f6,Bf6e8,Be8c7][%mdl 32]} 6. Re1 {[%emt 0:02:51]} O-O {[%emt 0:00:09]} 7. e5 {[%emt 0:01:25]} Ne8 {[%emt 0:02:47]} 8. d4 {[%emt 0:00:55]} cxd4 {[%emt 0:02:11]} 9. cxd4 {[%emt 0:00:15]} Nc7 {[%emt 0:04:31]} 10. Ba4 {[%emt 0:05:21]} d5 {[%emt 0:02:30] B31: Sicilian: 2...Nc6 3 Bb5 g6.} (10... d6 $15) 11. Be3 {[%emt 0:01:35] [#]} Na5 $146 {[%emt 0:03:12]} ({Predecessor:} 11... Bg4 12. Nc3 Na5 13. h3 Bxf3 14. Qxf3 a6 15. Rad1 b5 16. Bc2 Nc4 17. Bc1 Qd7 18. Ne2 {1-0 (31) Lebrun,X (2210)-De Lagontrie,J (1889) Elancourt 2009}) 12. Nc3 {[%emt 0:09:04]} Nc4 {[%emt 0:04:35] White is slightly better.} 13. Qe2 {[%emt 0:04:57]} Bg4 {[%emt 0:11:18]} 14. Bb3 {[%emt 0:11:09]} b5 {[%emt 0:04:59]} 15. h3 {[%emt 0:01:18]} Bd7 {[%emt 0:07:08]} 16. Bc1 {[%emt 0:05:02]} Nb6 {[%emt 0:03:42]} 17. a4 {[%emt 0:13:32][%cal Ra4b5]} bxa4 {[%emt 0:23:18]} 18. Nxa4 {[%emt 0:02:00]} Qe8 {[%emt 0:05:27]} (18... Bxa4 $11 {might be stronger.} 19. Bxa4 Nxa4 20. Rxa4 Qd7) 19. Nc5 $16 {[%emt 0:04:15]} a5 {[%emt 0:00:35]} 20. Nxd7 {[%emt 0:02:16]} Qxd7 {[%emt 0:00:05]} 21. Bc2 {[%emt 0:00:56]} a4 {[%emt 0:00:21]} 22. h4 {[%emt 0:04:05]} Rfb8 {[%emt 0:02:06]} 23. h5 {[%emt 0:01:16]} Qg4 {[%emt 0:01:18]} 24. hxg6 {[%emt 0:02:15]} hxg6 {[%emt 0:00:05]} 25. g3 {[%emt 0:06:11]} ({White should play} 25. Bd3 $16) 25... Ne6 $11 {[%emt 0:00:34]} 26. Kg2 {[%emt 0:07:09]} (26. Qd3 {simplifies} Ra7 27. Bd1 Rc7 28. Be3) 26... Nc4 {[%emt 0:04:13] aiming for ...Rxb2. Pair of Knights!} (26... Nxd4 {simplifies} 27. Nxd4 Qxd4 28. e6 f5) 27. Rh1 {[%emt 0:00:26]} (27. Rxa4 $11 Nxd4 28. Nxd4 Qxd4 29. e6) 27... Nxd4 {[%emt 0:04:18] Black has more active pieces.} (27... a3 $5 {[%cal Ra3b2]} 28. Rh4 Nxd4 29. Nxd4 Qxe2 30. Nxe2 axb2 31. Bxb2 (31. Rxa8 Rxa8 32. Bxb2 Ra2 $17) 31... Nxb2 32. Rxa8 Rxa8 $15) 28. Nxd4 {[%emt 0:00:05]} Qxd4 {[%emt 0:00:06] Really sharp!} 29. e6 {[%emt 0:00:11] Threatens to win with exf7+.} f5 {[%emt 0:01:47] White must now prevent ...a3.} (29... Nxb2 $2 30. exf7+ Kf8 31. Bg5 $18) 30. Rxa4 {[%emt 0:06:31]} Rxa4 {[%emt 0:00:18]} 31. Bxa4 {[%emt 0:00:05]} Nxb2 {[%emt 0:02:09]} 32. Rh4 {[%emt 0:03:37]} (32. Bf4 $15) 32... Qd3 $17 {[%emt 0:03:01]} 33. Qxd3 {[%emt 0:00:17]} Nxd3 {[%emt 0:00:01]} 34. Bg5 {[%emt 0:00:07] [#]} Rb2 $2 {[%emt 0:01:34]} (34... Kf8 $1 $17 {And now ...Ne1+ would win.} 35. Be3 Rb2) 35. Bxe7 $11 {[%emt 0:01:21]} Rxf2+ {[%emt 0:00:24]} 36. Kg1 $1 {[%emt 0:00:38] Hoping for Bg5.} Re2 {[%emt 0:00:16]} 37. Bb3 {[%emt 0:01:14]} f4 {[%emt 0:00:24]} (37... Rxe6 38. Bxd5 Kf7 39. Bg5 $16 (39. Bxe6+ Kxe6 40. Ba3 Be5 $14)) 38. gxf4 $2 {[%emt 0:00:50][%mdl 8192] Black continues to play with concentration.} (38. Bxd5 $11 {and White has nothing to worry.} Bd4+ 39. Kh1) 38... Bd4+ $19 {[%emt 0:00:32]} ({Weaker is} 38... Rxe6 39. Bxd5 Kf7 40. Bg5 $18 (40. Bxe6+ Kxe6 41. Ba3 Kf5 $16)) 39. Kh1 $2 {[%emt 0:00:12]} (39. Kf1 Rf2+ 40. Kg1) 39... Nf2+ {[%emt 0:00:49] Black is clearly winning.} 40. Kg2 {[%emt 0:00:50]} Ne4+ {[%emt 0:00:29]} ({Not} 40... Rxe6 41. Bxd5 Kf7 42. Bg5 $18) 41. Kh3 {[%emt 0:13:41]} Re3+ {[%emt 0:01:06]} 42. Kh2 {[%emt 0:00:04]} Rxb3 {[%emt 0:00:14]} 43. Bd8 {[%emt 0:01:10]} Bf6 {[%emt 0:09:40]} 44. e7 {[%emt 0:00:33]} Nd6 {[%emt 0:00:25]} (44... Bxh4 $2 45. e8=Q+ (45. e8=R+ $2 {perishes.} Kf7 $19) 45... Kh7 46. Qf7+ Kh6 47. Bxh4 $18) 45. Rg4 {[%emt 0:03:42]} Kf7 {[%emt 0:00:20]} 46. Rg1 {[%emt 0:03:48]} Ne8 {[%emt 0:02:06]} 47. Rd1 {[%emt 0:00:52]} d4 {[%emt 0:00:06]} 48. Kg2 {[%emt 0:00:16]} Ke6 {[%emt 0:02:01]} 49. Kf2 {[%emt 0:04:35]} Kf5 {[%emt 0:00:28]} 50. Ra1 {[%emt 0:02:57]} Kxf4 {[%emt 0:00:39] ...Rb2+ is the strong threat.} 51. Ra8 {[%emt 0:00:11]} Bh4+ {[%emt 0:02:04]} 52. Ke2 {[%emt 0:00:25] [#]} Bxe7 $1 {[%emt 0:04:41] Weighted Error Value: White=0.63/Black=0.37} 0-1

[Event "16th Serbian-ch Women 2022"]
[Site "Bajina Basta"]
[Date "2022.12.07"]
[Round "2.2"]
[White "Gajcin, Marina"]
[Black "Vujcic, Milena"]
[Result "1/2-1/2"]
[ECO "C54"]
[WhiteElo "2219"]
[BlackElo "2029"]
[Annotator "TA"]
[PlyCount "84"]
[EventDate "2022.12.06"]
[EventType "tourn"]
[EventCountry "SRB"]
[SourceTitle "playchess.com"]
[Source "ChessBase"]
[SourceQuality "1"]
[TimeControl "40/5400+30:1800+30"]

{[%evp 9,84,27,25,22,17,6,10,18,16,10,20,0,11,-14,-14,-10,-12,-23,-9,-7,0,0,0,0,2,0,16,0,39,-16,-25,-25,-20,-17,-11,-24,-21,-57,-16,-52,0,-4,-10,-10,0,0,32,30,39,17,207,-8,-8,-14,-10,-9,-11,-28,-13,-15,0,0,41,62,33,0,33,0,0,0,0,0,0,0,0,0,0]} 1. e4 {[%emt 0:00:03]} e5 {[%emt 0:00:07]} 2. Nf3 {[%emt 0:00:18]} Nc6 {[%emt 0:00:05]} 3. Bc4 {[%emt 0:00:04]} Bc5 {[%emt 0:00:05]} 4. c3 {[%emt 0:00:05]} Nf6 {[%emt 0:00:05]} 5. d3 {[%emt 0:00:04]} a6 {[%emt 0:00:15]} ({Don't take} 5... d5 6. exd5 Nxd5 7. Qb3 $14) 6. a4 {[%emt 0:03:36] C54: Giuoco Piano: 4 c3 Nf6, main lines with 5 d4 and 5 d3.} d6 {[%emt 0:00:24]} 7. Nbd2 {[%emt 0:04:57]} O-O {[%emt 0:00:46]} 8. O-O {[%emt 0:01:02]} h6 {[%emt 0:01:46]} 9. h3 {[%emt 0:12:07]} Ba7 {[%emt 0:00:16]} 10. Bb3 {[%emt 0:04:06]} (10. Re1 {feels hotter.} Nh5 11. Nf1 Qf6 12. Be3) 10... Nh5 {[%emt 0:05:14] [#]} 11. Nxe5 $146 {[%emt 0:29:57]} ({Predecessor:} 11. Re1 Qf6 12. Nf1 Qg6 13. Nh4 Qf6 14. Nf3 Qg6 15. Nh4 Qf6 16. Nf3 Qg6 17. Nh4 Qf6 {½-½ (17) Muzychuk,A (2531)-Muzychuk,M (2539) Warsaw 2021}) 11... Nxe5 {[%emt 0:03:44]} 12. Qxh5 {[%emt 0:00:20]} Nxd3 {[%emt 0:00:07]} 13. Nf3 {[%emt 0:03:34][%cal Oc1h6]} (13. Bc2 {simplifies} Nxc1 14. Raxc1 Qg5 15. Qxg5 hxg5 16. Nf3) 13... Nxc1 {[%emt 0:00:49]} 14. Raxc1 {[%emt 0:00:14]} (14. Rfxc1 {simplifies} Be6 15. Bc2 Qf6 16. Re1) 14... Qf6 {[%emt 0:03:29]} (14... Be6 {simplifies} 15. Bc2 Qf6 16. Rfe1 Rae8) 15. e5 {[%emt 0:11:54]} dxe5 {[%emt 0:01:13]} 16. Qxe5 {[%emt 0:01:44]} Qb6 {[%emt 0:20:22]} 17. Bc2 {[%emt 0:01:07]} Bd7 {[%emt 0:11:48]} 18. a5 {[%emt 0:02:18]} Qc5 {[%emt 0:01:31]} 19. b4 {[%emt 0:01:55]} ({Better is} 19. Qe4 $14 f5 20. Qxb7) 19... Qxe5 $11 {[%emt 0:01:05]} 20. Nxe5 {[%emt 0:00:01]} Be6 {[%emt 0:00:19]} 21. Be4 {[%emt 0:01:53]} c6 {[%emt 0:02:59]} 22. Rfd1 {[%emt 0:04:56]} Rfd8 {[%emt 0:00:50]} 23. Rd3 {[%emt 0:03:07]} f6 {[%emt 0:05:04]} 24. Ng6 {[%emt 0:02:34]} Kf7 {[%emt 0:15:50]} (24... Bc4 $15 25. Rdd1 Bb3 26. Rxd8+ Rxd8) 25. Rcd1 {[%emt 0:00:54]} Rxd3 {[%emt 0:00:29]} 26. Bxd3 {[%emt 0:00:10]} Bb8 {[%emt 0:08:38] Prevents Nf4.} 27. g4 {[%emt 0:03:26] Inhibits f5.} h5 {[%emt 0:03:25]} 28. gxh5 {[%emt 0:00:16]} f5 $1 {[%emt 0:00:35]} 29. Kg2 {[%emt 0:01:40]} Bc7 $2 {[%emt 0:00:32] [#]} (29... Kf6 $11 {and Black has nothing to worry.}) 30. Re1 $2 {[%emt 0:02:13]} (30. Bc4 $1 $18 {[%mdl 512]} Bxc4 (30... Rd8 31. Bxe6+) 31. Rd7+ Kf6 32. Rxc7) 30... Kf6 {[%emt 0:01:09]} 31. f4 {[%emt 0:00:52]} Rd8 {[%emt 0:00:29]} 32. Re3 {[%emt 0:00:31]} c5 {[%emt 0:02:43]} 33. bxc5 {[%emt 0:02:46]} Bxa5 {[%emt 0:00:08] A strong pair of Bishops.} 34. Be2 {[%emt 0:01:09]} Rc8 {[%emt 0:04:40]} 35. Bf3 {[%emt 0:00:37]} Rxc5 {[%emt 0:00:07]} (35... b6 {seems wilder.} 36. c6 b5 37. Ne5 Bc7) 36. Nf8 $1 {[%emt 0:00:51] Strongly threatening Nh7+.} Bc8 {[%emt 0:02:03]} (36... Rxc3 $2 37. Rxe6+ Kf7 38. Re5 Kxf8 39. Rxf5+ Ke8 40. Rxa5 $18) 37. Nh7+ {[%emt 0:00:11]} Kf7 {[%emt 0:00:11]} 38. Ng5+ {[%emt 0:01:00]} (38. c4 $5 Bd2 39. Re2 Bxf4 40. Bd5+ Rxd5 41. cxd5 $16) 38... Kf8 {[%emt 0:02:39] The position is equal.} 39. Nh7+ {[%emt 0:00:30]} Kg8 {[%emt 0:00:19]} 40. Ng5 {[%emt 0:00:17][%cal Re3e8]} Kf8 {[%emt 0:00:03] Inhibits Re8+.} (40... Rxc3 $2 41. Re8#) 41. Nh7+ {[%emt 0:08:42]} Kg8 {[%emt 0:00:38]} 42. Ng5 {[%emt 0:03:16][%cal Re3e8]} Kf8 {[%emt 0:00:09] Prevents Re8+.   Weighted Error Value: White=0.19 (very precise) /Black=0.17 (very precise)} (42... Rxc3 $2 43. Re8#) 1/2-1/2